bitfinex/quotes_SOLUSD_20260309
["timestamp","ask_amount","ask_price","bid_price","bid_amount"]
[1773050958438,1.23098755,84.007,83.973,11.90858966]
[1773050958623,1.23098755,83.989,83.955,1.16275161]
[1773050958937,1.51531069,83.999,83.961,1.16275161]
[1773050959120,1.23098755,83.989,83.961,1.16275161]
[1773050960542,1.23098755,83.989,83.963,1.16275161]
[1773050961438,1.23098755,83.998,83.965,1.16275161]
[1773050961640,1.23098755,84.006,83.971,1.16275161]
[1773050962829,11.90423109,84.004,83.973,1.16275161]
[1773050963629,11.6704108,84.01,83.981,1.16275161]
[1773050963842,13.13389252,84.014,83.981,1.16275161]
[1773050964138,13.13389252,84.014,83.972,41.68056018]
[1773050964139,1.51531069,84.009,83.973,1.16275161]
[1773050964831,1.23098755,84.009,83.981,1.16275161]
[1773050965032,1.23098755,84.007,83.981,1.16275161]
[1773050965941,1.23098755,84.014,83.991,1.16275161]
[1773050966138,1.23098755,84.012,83.991,1.16275161]
[1773050966335,1.23098755,84.012,83.981,1.16275161]
[1773050968349,29.75393943,84.023,83.966,1.16275161]
[1773050968350,1.23098755,83.999,83.966,1.16275161]
[1773050969243,1.51531069,84.009,83.971,1.16275161]
[1773050969450,1.23098755,84.009,83.981,1.16275161]
[1773050969853,1.23098755,84.029,84.0,4.35548939]
[1773050970041,1.23098755,84.019,83.991,1.16275161]
[1773050970349,1.23098755,84.018,83.992,11.90589579]
[1773050971751,1.23098755,84.018,83.993,1.16275161]
[1773050972851,1.23098755,84.018,83.995,1.16275161]
[1773050974754,1.23098755,84.018,83.996,11.90532882]
[1773050974952,1.23098755,84.018,83.996,13.0939617]
[1773050975553,0.28432314,84.036,83.996,13.0939617]
[1773050975554,1.19078995,84.05,84.025,1.18863288]
[1773050975734,1.19078995,84.05,84.02,11.66467553]
[1773050976076,1.19078995,84.048,84.01,11.66467553]
[1773050976444,1.19078995,84.048,84.011,0.82357484]
[1773050977433,1.19078995,84.048,83.996,41.66865088]
[1773050977434,1.19078995,84.039,84.012,11.90306146]
[1773050979347,1.19078995,84.039,84.012,41.66071512]
[1773050980137,1.19078995,84.039,84.012,42.49234893]
[1773050980449,1.19078995,84.039,84.013,0.83163381]
[1773050981656,1.19078995,84.039,84.014,11.9027781]
[1773050982459,1.19078995,84.039,84.015,0.83937948]
[1773050983868,1.19078995,84.039,83.986,95.25303628]
[1773050983869,1.19078995,84.049,84.02,12.50658522]
[1773050984166,1.19078995,84.049,84.021,0.84190969]
[1773050985465,1.25292644,84.056,84.031,0.84930115]
[1773050985643,7.35146399,84.073,84.05,11.66467553]
[1773050985962,7.35146399,84.073,84.051,11.89753839]
[1773050986753,7.35146399,84.073,84.051,41.64138438]
[1773050986958,1.25292644,84.089,84.061,0.85171227]
[1773050988164,1.25292644,84.079,84.044,0.85411253]
[1773050988353,1.25292644,84.079,84.05,11.66467553]
[1773050988550,1.25292644,84.079,84.044,0.85411253]
[1773050988754,1.25292644,84.079,84.043,11.89867091]
[1773050989644,1.25292644,84.079,84.043,12.75746336]
[1773050989847,1.25292644,84.079,84.044,0.85879245]
[1773050990748,1.25292644,84.077,84.05,11.66467553]
[1773050991663,1.25292644,84.077,84.051,0.86338901]
[1773050991862,1.45292644,84.08,84.06,11.66467553]
[1773050992061,1.45292644,84.08,84.057,0.86338901]
[1773050992450,0.2,84.08,84.06,11.66467553]
[1773050992651,0.2,84.08,84.045,41.64435718]
[1773050992652,1.25292644,84.079,84.05,24.42799283]
[1773050992857,1.25292644,84.078,84.05,23.56235548]
[1773050993058,1.25292644,84.078,84.05,53.30655536]
[1773050993256,1.25292644,84.078,84.05,54.17219271]
[1773050993465,1.25292644,84.078,84.051,0.86785908]
[1773050993650,0.2,84.08,84.059,0.86785908]
[1773050993850,1.45292644,84.08,84.052,0.86785908]
[1773050994172,1.45292644,84.08,84.06,4.34791053]
[1773050995077,1.45292644,84.08,84.061,11.89612305]
[1773050995258,0.2,84.08,84.061,11.89612305]
[1773050996870,1.25292644,84.109,84.071,0.87436986]
[1773050997054,1.25292644,84.109,84.08,4.34791053]
[1773050998680,1.25292644,84.107,84.081,11.89329337]
[1773050999875,1.25292644,84.107,84.081,41.62652679]
[1773051000372,1.25292644,84.107,84.081,11.89329337]
[1773051001073,1.25292644,84.105,84.081,11.89329337]
[1773051002667,1.25292644,84.089,84.055,0.88674882]
[1773051002877,4.34791053,84.08,84.047,0.88674882]
[1773051003084,1.28983106,84.077,84.041,41.64633928]
[1773051003783,1.28983106,84.069,84.041,11.89895408]
[1773051004285,1.28983106,84.077,84.05,4.34791053]
[1773051004887,1.28983106,84.077,84.042,0.89263026]
[1773051005065,1.28983106,84.075,84.043,11.89867091]
[1773051005269,1.28983106,84.075,84.05,4.34791053]
[1773051005986,71.22648857,84.239,84.043,41.6453482]
[1773051005987,1.28983106,84.085,84.06,4.34791053]
[1773051006165,1.28983106,84.105,84.071,0.89454697]
[1773051006362,7.35543416,84.113,84.09,4.34791053]
[1773051006561,7.35543416,84.113,84.043,138.02458263]
[1773051006562,11.8850949,84.139,84.1,5.62488368]
[1773051006779,11.8850949,84.139,84.101,1.27697315]
[1773051007164,41.59783215,84.139,84.082,1.27697315]
[1773051007363,41.59783215,84.139,84.04,4.34791053]
[1773051007364,4.34791053,84.11,84.071,1.27697315]
[1773051007569,3.69383402,84.136,84.071,1.27697315]
[1773051007570,11.64219488,84.1,84.071,1.27697315]
[1773051007883,11.64219488,84.09,84.061,1.27697315]
[1773051008087,11.64219488,84.1,84.061,1.27697315]
[1773051008582,1.28983106,84.099,84.061,1.27697315]
[1773051008782,1.28983106,84.109,84.071,1.27697315]
[1773051009880,0.28432314,84.12,84.041,0.28432314]
[1773051009881,1.28983106,84.099,84.072,11.89456656]
[1773051010081,11.88947543,84.108,84.072,11.89456656]
[1773051010082,11.64219488,84.09,84.072,11.89456656]
[1773051010282,11.64219488,84.09,84.055,1.27697315]
[1773051010283,1.28983106,84.089,84.055,1.27697315]
[1773051010485,1.28983106,84.079,84.051,11.8974617]
[1773051010692,11.64219488,84.07,84.051,11.8974617]
[1773051010881,1.28983106,84.072,84.051,11.8974617]
[1773051011268,11.64219488,84.08,84.051,11.8974617]
[1773051011482,1.28983106,84.079,84.052,1.27697315]
[1773051011982,1.28983106,84.079,84.053,13.17422845]
[1773051012178,1.28983106,84.079,84.054,1.27697315]
[1773051013084,1.28983106,84.088,84.054,1.27697315]
[1773051013384,1.28983106,84.087,84.054,1.27697315]
[1773051013776,1.28983106,84.087,84.021,47.891047]
[1773051013777,11.64219488,84.06,84.023,1.27697315]
[1773051014088,1.28983106,84.061,84.031,1.27697315]
[1773051014584,11.89537394,84.067,84.031,1.27697315]
[1773051016387,1.28983106,84.069,84.04,11.64219488]
[1773051016594,13.18487876,84.069,84.041,1.27697315]
[1773051016971,11.64219488,84.06,84.033,1.27697315]
[1773051017171,1.28983106,84.068,84.033,1.27697315]
[1773051018887,1.28983106,84.066,84.035,1.27697315]
[1773051019096,1.28983106,84.049,84.02,12.91916803]
[1773051019272,1.28983106,84.049,84.021,1.27697315]
[1773051019674,1.28983106,84.058,84.021,1.27697315]
[1773051019974,11.64219488,84.06,84.031,1.27697315]
[1773051021291,11.64219488,84.07,84.041,1.27697315]
[1773051021673,1.28983106,84.076,84.041,1.27697315]
[1773051021873,11.64219488,84.08,84.051,1.27697315]
[1773051022188,1.28983106,84.079,84.042,1.27697315]
[1773051022892,1.28983106,84.079,84.051,1.27697315]
[1773051023083,23.53574116,84.08,84.051,1.27697315]
[1773051023285,23.53574116,84.08,84.018,47.60828344]
[1773051023286,1.28983106,84.059,84.023,1.27697315]
[1773051023492,11.64219488,84.05,84.023,1.27697315]
[1773051023676,1.28983106,84.052,84.023,1.27697315]
[1773051023876,11.65678419,84.06,84.023,1.27697315]
[1773051024082,1.28983106,84.059,84.023,1.27697315]
[1773051025483,1.28983106,84.057,84.025,1.27697315]
[1773051027502,1.28983106,84.069,84.031,1.27697315]
[1773051031005,1.28983106,84.067,84.033,1.27697315]
[1773051033610,1.23634165,84.065,84.035,1.33586529]
[1773051033979,1.23634165,84.059,84.027,1.33586529]
[1773051034180,11.8954155,84.066,84.03,11.90046508]
[1773051034181,1.23634165,84.049,84.03,11.90046508]
[1773051034690,4.35045172,84.04,84.021,11.90178645]
[1773051034892,1.23634165,84.049,84.021,11.90178645]
[1773051035810,1.23634165,84.047,84.021,41.65625259]
[1773051035986,1.23634165,84.047,84.022,1.33586529]
[1773051037000,1.23634165,84.047,84.021,11.90178645]
[1773051037206,1.23634165,84.047,84.022,1.33586529]
[1773051037701,1.23634165,84.039,84.016,11.90249476]
[1773051038907,1.23634165,84.039,84.012,11.90300301]
[1773051039112,12.89481922,84.02,83.999,1.33586529]
[1773051039405,1.23634165,84.019,83.991,1.33586529]
[1773051039713,1.23634165,84.019,83.996,11.90520629]
[1773051040786,0.28432314,84.049,83.996,11.90520629]
[1773051040787,1.23634165,84.029,84.001,1.33586529]
[1773051040999,1.23634165,84.039,84.001,1.33586529]
[1773051041602,1.23634165,84.029,84.002,13.24034375]
[1773051041919,1.23634165,84.029,84.003,1.33586529]
[1773051043113,11.65847757,84.03,84.003,1.33586529]
[1773051044587,12.91408989,84.02,84.004,11.90419503]
[1773051044892,1.25561232,84.019,84.004,11.90419503]
[1773051045888,1.25561232,84.019,83.997,11.90518709]
[1773051046207,11.65847757,84.03,84.001,1.32831925]
[1773051046787,11.65847757,84.02,84.001,1.32831925]
[1773051046985,1.25561232,84.019,83.997,41.66815481]
[1773051047186,1.25561232,84.009,83.994,25.43813006]
[1773051047396,1.25561232,84.009,83.976,1.32831925]
[1773051047397,1.25561232,83.999,83.97,0.1]
[1773051047596,12.91408989,83.99,83.97,0.1]
[1773051047794,1.25561232,83.989,83.971,11.9088733]
[1773051048615,1.25561232,83.979,83.953,1.32831925]
[1773051048789,11.65847757,83.97,83.954,11.91128475]
[1773051050107,1.25561232,83.979,83.954,11.91128475]
[1773051050295,11.65847757,84.0,83.961,1.32831925]
[1773051050501,11.90543884,83.996,83.961,1.32831925]
[1773051050683,23.56326823,84.0,83.961,1.32831925]
[1773051051509,11.65847757,84.0,83.961,1.32831925]
[1773051051807,23.56328835,84.0,83.961,1.32831925]
[1773051052003,48.75079688,84.0,83.963,1.32831925]
[1773051052306,50.0064092,84.0,83.963,1.32831925]
[1773051054104,50.0064092,84.0,83.965,1.32831925]
[1773051054405,11.65847757,84.01,83.98,11.65847757]
[1773051054608,20.15000682,84.014,83.982,1.32831925]
[1773051055195,11.65847757,83.99,83.969,1.32831925]
[1773051055400,1.25561232,83.979,83.952,1.32831925]
[1773051055595,11.65847757,83.97,83.952,1.32831925]
[1773051055896,11.65847757,83.97,83.951,11.9116831]
[1773051056398,11.90915695,83.969,83.945,11.91256179]
[1773051056591,13.16476927,83.969,83.945,11.91256179]
[1773051056792,13.16476927,83.969,83.94,0.1]
[1773051056793,1.25561232,83.969,83.941,13.24136934]
[1773051057707,11.65847757,83.97,83.942,1.32831925]
[1773051057912,20.15000682,83.983,83.95,11.65847757]
[1773051057913,11.65847757,83.98,83.95,11.65847757]
[1773051058118,20.15000682,83.983,83.961,1.32831925]
[1773051058119,17.29077228,83.983,83.961,1.32831925]
[1773051058492,17.29077228,83.983,83.963,1.32831925]
[1773051059011,1.25561232,83.995,83.963,1.32831925]
[1773051059511,16.12000546,84.004,83.971,1.32831925]
[1773051060012,11.65847757,84.0,83.971,1.32831925]
[1773051060398,16.12000546,84.004,83.981,1.32831925]
[1773051060607,16.12000546,84.004,83.983,1.32831925]
[1773051062799,16.12000546,84.004,83.985,1.32831925]
[1773051064801,29.75347172,84.024,83.991,1.3354178]
[1773051064802,11.90148296,84.024,83.991,1.3354178]
[1773051065017,11.65847757,84.02,83.991,1.3354178]
[1773051065419,11.90148296,84.024,83.966,59.5477899]
[1773051065420,1.22804972,83.999,83.977,11.90791479]
[1773051066613,1.22804972,83.999,83.969,1.3354178]
[1773051066919,1.22804972,83.999,83.944,3.69383402]
[1773051066920,1.22804972,83.989,83.963,11.90990105]
[1773051067105,11.65847757,83.97,83.945,1.3354178]
[1773051068640,1.22804972,83.989,83.951,1.3354178]
[1773051068918,11.65847757,83.98,83.951,1.3354178]
[1773051069220,12.88652729,83.98,83.951,1.3354178]
[1773051069605,11.65847757,83.98,83.951,1.3354178]
[1773051070921,11.65847757,83.98,83.953,1.3354178]
[1773051071118,11.65847757,83.99,83.961,1.3354178]
[1773051071318,12.89600436,83.991,83.961,1.3354178]
[1773051071615,4.35762386,83.99,83.961,1.3354178]
[1773051071818,16.26380316,83.99,83.961,1.3354178]
[1773051072031,4.35762386,83.98,83.953,1.3354178]
[1773051073120,4.35762386,83.98,83.955,1.3354178]
[1773051073922,4.35762386,83.97,83.95,11.91178145]
[1773051075326,1.22804972,83.959,83.941,11.91312945]
[1773051075636,1.22804972,83.949,83.924,11.91554263]
[1773051077820,1.22804972,83.949,83.924,13.25096043]
[1773051078821,11.68563757,83.95,83.925,1.3354178]
[1773051079016,11.68563757,83.95,83.927,1.3354178]
[1773051081625,11.68563757,83.95,83.929,1.3354178]
[1773051081928,11.68563757,83.96,83.929,1.3354178]
[1773051082126,11.68563757,83.96,83.931,1.3354178]
[1773051083113,1.22804972,83.959,83.931,1.3354178]
[1773051085238,14.12405408,83.968,83.933,1.3354178]
[1773051085523,11.68563757,83.96,83.933,1.3354178]
[1773051085725,11.6808172,83.96,83.933,1.3354178]
[1773051087636,11.91057539,83.959,83.934,13.2495408]
[1773051087933,11.6808172,83.96,83.935,1.3354178]
[1773051088811,1.22804972,83.959,83.935,1.3354178]
[1773051089011,11.6808172,83.96,83.935,1.3354178]
[1773051091430,1.22804972,83.966,83.937,1.3354178]
[1773051091637,12.89600436,83.968,83.937,1.3354178]
[1773051091938,1.22804972,83.995,83.951,1.3354178]
[1773051092126,1.22804972,83.995,83.961,1.3354178]
[1773051092322,1.22804972,83.969,83.942,1.3354178]
[1773051092523,11.6808172,83.97,83.942,1.3354178]
[1773051092824,1.22804972,83.976,83.942,1.3354178]
[1773051093424,10.31680349,83.997,83.942,1.3354178]
[1773051093425,1.31819748,83.969,83.943,11.91284562]
[1773051093820,1.31819748,83.969,83.943,13.27641131]
[1773051094434,1.31819748,83.986,83.951,1.36356569]
[1773051094625,1.31819748,83.996,83.961,1.36356569]
[1773051095734,1.31819748,83.996,83.96,11.6808172]
[1773051095735,10.31680349,83.997,83.971,1.36356569]
[1773051096241,11.90370744,84.008,83.981,1.36356569]
[1773051096443,1.31819748,84.007,83.981,1.36356569]
[1773051096738,1.31819748,83.999,83.971,1.36356569]
[1773051097336,1.31819748,83.999,83.962,41.68552439]
[1773051097337,1.31819748,83.999,83.963,1.36356569]
[1773051097535,1.31819748,83.989,83.963,1.36356569]
[1773051097841,1.31819748,83.987,83.964,11.90986613]
[1773051098145,11.6808172,83.98,83.964,11.90986613]
[1773051098522,1.31819748,83.987,83.964,11.90986613]
[1773051099836,11.6808172,83.99,83.961,1.36356569]
[1773051100922,1.31819748,83.994,83.961,1.36356569]
[1773051101123,24.90249272,84.01,83.971,1.36356569]
[1773051101345,1.31819748,84.009,83.971,1.36356569]
[1773051101524,1.31819748,83.999,83.971,1.36356569]
[1773051102253,11.6808172,83.99,83.972,11.90873148]
[1773051102632,11.6808172,83.99,83.941,95.58875586]
[1773051102633,1.31819748,83.989,83.955,1.36356569]
[1773051102856,12.99901468,83.98,83.956,11.911001]
[1773051103763,1.31819748,83.979,83.956,11.911001]
[1773051104259,11.6808172,83.97,83.949,31.14323325]
[1773051104457,1.31819748,83.977,83.949,31.14323325]
[1773051104759,1.31819748,83.977,83.95,1.36356569]
[1773051105245,11.907786,83.979,83.942,1.33879964]
[1773051105246,1.35595484,83.969,83.942,1.33879964]
[1773051106049,11.907786,83.979,83.951,1.33879964]
[1773051106549,11.907786,83.979,83.953,1.33879964]
[1773051106728,13.26374084,83.979,83.953,1.33879964]
[1773051107432,11.907786,83.979,83.955,1.33879964]
[1773051107631,13.26374084,83.979,83.955,1.33879964]
[1773051108043,1.35595484,83.978,83.955,1.33879964]
[1773051108448,11.6808172,83.98,83.955,1.33879964]
[1773051109254,1.35595484,83.986,83.955,1.33879964]
[1773051109751,11.6808172,83.98,83.956,11.911001]
[1773051109948,11.6808172,83.98,83.957,1.33879964]
[1773051111137,29.76242439,83.999,83.957,1.33879964]
[1773051111138,11.6808172,83.99,83.957,1.33879964]
[1773051111353,11.6808172,83.99,83.961,1.33879964]
[1773051111552,1.35595484,83.989,83.961,1.33879964]
[1773051112137,1.35595484,83.989,83.962,11.91014982]
[1773051112452,1.35595484,83.979,83.957,11.91080122]
[1773051113554,1.35595484,83.979,83.957,13.24960086]
[1773051113752,1.35595484,83.979,83.958,1.33879964]
[1773051114441,11.6808172,83.98,83.96,1.33879964]
[1773051114637,11.6808172,83.99,83.96,1.33879964]
[1773051115053,1.35595484,83.988,83.96,1.33879964]
[1773051116859,1.35595484,83.988,83.962,1.33879964]
[1773051118854,1.35595484,83.998,83.964,1.33879964]
[1773051119161,11.6808172,83.99,83.964,1.33879964]
[1773051119544,4.35800571,83.99,83.964,1.33879964]
[1773051119944,5.71396055,83.99,83.964,1.33879964]
[1773051120264,1.35595484,83.989,83.964,1.33879964]
[1773051121347,1.35595484,84.001,83.966,1.33879964]
[1773051121552,4.35800571,84.0,83.971,1.33879964]
[1773051122054,4.35800571,83.99,83.966,1.33879964]
[1773051122252,10.25420949,84.008,83.971,1.33879964]
[1773051122641,10.25420949,84.008,83.981,1.33879964]
[1773051123147,1.30917281,83.999,83.971,1.35097624]
[1773051123660,11.90504535,83.998,83.973,1.35097624]
[1773051123863,1.30917281,83.999,83.973,1.35097624]
[1773051125248,1.30917281,83.997,83.973,1.35097624]
[1773051125657,1.30917281,83.995,83.966,1.35097624]
[1773051125970,11.90532882,83.996,83.963,29.77480524]
[1773051125971,1.30917281,83.989,83.963,29.77480524]
[1773051126190,1.30917281,83.989,83.964,11.90986613]
[1773051126868,1.30917281,83.979,83.964,11.90986613]
[1773051127068,1.30917281,83.979,83.955,11.91114287]
[1773051127762,1.30917281,83.979,83.955,1.35097624]
[1773051128768,1.30917281,83.979,83.956,11.911001]
[1773051128971,1.30917281,83.979,83.957,1.35097624]
[1773051130171,1.30917281,83.979,83.958,13.2616935]
[1773051133978,1.30917281,83.969,83.944,1.35097624]
[1773051135861,1.30917281,83.969,83.945,11.91256179]
[1773051137370,1.30917281,83.969,83.946,1.35097624]
[1773051138079,1.30917281,83.969,83.948,1.35097624]
[1773051138881,4.35800571,83.97,83.948,1.35097624]
[1773051139176,4.35800571,83.99,83.951,1.35097624]
[1773051139683,5.66717852,83.99,83.951,1.35097624]
[1773051139878,1.30917281,83.989,83.951,1.35097624]
[1773051140383,1.30917281,83.989,83.953,1.35097624]
[1773051142281,4.35800571,83.99,83.961,1.35097624]
[1773051142466,2.47215037,100.06,83.961,1.35097624]
[1773051142467,4.35800571,84.0,83.961,1.35097624]
[1773051143386,4.35800571,83.99,83.961,1.35097624]
[1773051143975,1.30917281,83.989,83.961,1.35097624]
[1773051144676,1.30917281,83.989,83.963,1.35097624]
[1773051145280,4.35800571,84.0,83.963,1.35097624]
[1773051145677,1.30917281,84.001,83.963,1.35097624]
[1773051145882,4.35693668,84.0,83.971,1.35097624]
[1773051146669,29.75554136,84.018,83.973,1.35097624]
[1773051146670,4.35693668,84.01,83.973,1.35097624]
[1773051146965,4.35693668,84.02,83.981,1.35097624]
[1773051147288,1.30917281,84.024,83.991,1.35097624]
[1773051147509,1.30917281,84.024,83.972,101.22421758]
[1773051147510,4.35693668,84.03,84.001,1.35097624]
[1773051147795,1.30917281,84.019,83.981,1.35097624]
[1773051149488,1.30917281,84.009,83.983,1.35097624]
[1773051150491,4.35693668,84.0,83.983,1.35097624]
[1773051151072,1.30917281,83.999,83.977,11.90788705]
[1773051151278,4.35693668,84.0,83.978,1.35097624]
[1773051151474,4.35693668,84.01,83.983,1.35097624]
[1773051152574,4.35693668,84.01,83.985,1.35097624]
[1773051152786,37.95535811,84.028,83.985,1.35097624]
[1773051152787,4.35693668,84.02,83.985,1.35097624]
[1773051153294,4.35693668,84.02,83.991,1.4064655]
[1773051153682,1.34217258,84.019,83.991,1.4064655]
[1773051153885,4.35693668,84.01,83.991,1.4064655]
[1773051154590,1.34217258,84.013,83.991,1.4064655]
[1773051156488,4.35693668,84.01,83.992,13.31236129]
[1773051157275,1.34217258,84.009,83.987,11.90660459]
[1773051157990,1.34217258,84.009,83.987,13.31307009]
[1773051158189,4.35693668,84.01,83.988,1.4064655]
[1773051158994,4.35693668,84.01,83.99,1.4064655]
[1773051159578,1.34217258,84.019,83.99,1.4064655]
[1773051159782,4.35693668,84.02,83.99,1.4064655]
[1773051159988,4.35693668,84.02,83.991,1.4064655]
[1773051160184,1.34217258,84.026,83.991,1.4064655]
[1773051160687,11.90121987,84.025,83.991,1.4064655]
[1773051161502,4.35693668,84.02,83.993,1.4064655]
[1773051164208,4.35693668,84.02,83.994,11.9056123]
[1773051164407,5.69910926,84.02,83.995,1.4064655]
[1773051164612,1.34217258,84.019,83.995,1.4064655]
[1773051166114,1.34217258,84.019,83.997,1.38581259]
[1773051167423,4.35693668,84.02,83.997,1.38581259]
[1773051168294,4.35693668,84.02,83.999,1.38581259]
[1773051169813,1.40587617,84.025,83.999,1.38581259]
[1773051170013,8.20336759,84.028,84.001,1.38581259]
[1773051170197,8.20336759,84.028,84.011,1.38581259]
[1773051170398,8.20336759,84.028,84.013,1.38581259]
[1773051171285,1.40587617,84.027,84.002,31.14700618]
[1773051172088,1.40587617,84.027,84.003,1.38581259]
[1773051172814,1.40587617,84.027,84.003,13.29014933]
[1773051173414,1.40587617,84.027,84.004,1.38581259]
[1773051175119,1.40587617,84.027,84.006,1.38581259]
[1773051175612,8.20336759,84.028,84.006,1.38581259]
[1773051175822,1.40587617,84.027,84.005,11.90405333]
[1773051176594,1.40587617,84.027,84.005,13.28986592]
[1773051178020,4.35693668,84.02,84.005,13.28986592]
[1773051180333,4.35693668,84.02,84.006,1.38581259]
[1773051181742,1.40587617,84.027,84.006,1.38581259]
[1773051182934,1.40587617,84.027,84.008,1.38581259]
[1773051183136,1.40587617,84.027,83.981,0.28432314]
[1773051183137,1.28947736,84.019,83.998,11.90504535]
[1773051185346,1.28947736,84.019,83.998,13.20747923]
[1773051185639,1.28947736,84.009,83.973,1.30243388]
[1773051185856,4.35693668,83.99,83.973,1.30243388]
[1773051186246,1.28947736,83.999,83.973,1.30243388]
[1773051186559,1.28947736,83.999,83.972,41.68056018]
[1773051186560,11.90206976,84.019,83.981,1.30243388]
[1773051186948,4.35693668,84.0,83.983,1.30243388]
[1773051187141,1.28947736,84.009,83.983,1.30243388]
[1773051187470,4.35693668,84.0,83.983,1.30243388]
[1773051187665,1.28947736,83.999,83.976,1.30243388]
[1773051189060,1.28947736,83.999,83.978,1.30243388]
[1773051189372,1.28947736,84.006,83.978,1.30243388]
[1773051191860,1.28947736,84.006,83.979,11.90773883]
[1773051192068,1.28947736,84.006,83.98,1.30243388]
[1773051192447,1.28947736,84.001,83.98,1.30243388]
[1773051193063,1.28947736,84.001,83.981,11.90745525]
[1773051193261,1.28947736,84.001,83.982,1.30243388]
[1773051193775,1.28947736,84.007,83.982,1.30243388]
[1773051197169,1.28947736,84.007,83.984,1.30243388]
[1773051197668,1.28947736,84.007,83.983,11.90717168]
[1773051197669,1.28947736,83.999,83.971,1.30243388]
[1773051198173,1.28947736,83.999,83.973,11.90848169]
[1773051198373,1.28947736,83.989,83.958,29.77674362]
[1773051198556,41.66369068,84.006,83.948,1.30243388]
[1773051198557,1.28947736,83.969,83.948,1.30243388]
[1773051198763,4.35693668,83.96,83.942,1.30243388]
[1773051198968,1.28947736,83.959,83.936,1.30243388]
[1773051199154,1.28947736,83.959,83.938,1.30243388]
[1773051201177,1.28947736,83.957,83.933,11.91426494]
[1773051201576,4.35693668,83.95,83.933,11.91426494]
[1773051201774,5.64641404,83.95,83.933,11.91426494]
[1773051202091,1.28947736,83.949,83.926,1.30243388]
[1773051203170,1.28947736,83.949,83.928,1.30243388]
[1773051203884,1.28947736,83.966,83.929,1.30243388]
[1773051204181,1.28947736,83.966,83.931,1.30243388]
[1773051204480,1.28947736,83.969,83.931,1.30243388]
[1773051204862,1.28947736,83.959,83.931,1.30243388]
[1773051205476,1.28947736,83.959,83.933,1.30243388]
[1773051206272,4.35693668,83.96,83.932,11.9144069]
[1773051206273,1.28947736,83.957,83.932,11.9144069]
[1773051206578,11.91071726,83.958,83.927,1.30243388]
[1773051206579,4.35693668,83.95,83.931,11.91449726]
[1773051206784,1.28947736,83.951,83.931,13.21693114]
[1773051207281,1.28947736,83.951,83.932,1.30243388]
[1773051207480,1.28947736,83.951,83.933,11.91426494]
[1773051208875,1.28947736,83.951,83.933,1.30243388]
[1773051209179,1.28947736,83.957,83.925,1.30243388]
[1773051209965,1.28947736,83.949,83.926,11.91525868]
[1773051210159,1.28947736,83.939,83.921,11.91583684]
[1773051210578,1.28947736,83.939,83.911,1.30243388]
[1773051210579,4.3617546,83.93,83.911,1.30243388]
[1773051210775,1.28947736,83.929,83.916,19.37389887]
[1773051210978,1.28947736,83.929,83.916,7.45731237]
[1773051211872,1.28947736,83.929,83.91,0.1]
[1773051212692,1.28947736,83.927,83.91,0.1]
[1773051214370,1.39547931,83.959,83.921,1.30607609]
[1773051214770,1.39547931,83.959,83.931,1.30607609]
[1773051215483,1.39547931,83.966,83.941,1.30607609]
[1773051215685,1.39547931,83.974,83.941,1.30607609]
[1773051215893,11.90872647,83.973,83.941,1.30607609]
[1773051216270,11.90872647,83.973,83.943,1.30607609]
[1773051218691,1.39547931,83.974,83.951,1.30607609]
[1773051220371,11.90880195,83.972,83.951,1.30607609]
[1773051221470,1.39547931,83.974,83.952,11.91156851]
[1773051221871,1.39547931,83.974,83.952,13.2176446]
[1773051222095,11.90865029,83.973,83.952,11.91156851]
[1773051222287,1.39547931,83.969,83.952,11.91156851]
[1773051222596,13.30466716,83.969,83.948,11.91212533]
[1773051223493,1.39547931,83.962,83.937,1.30607609]
[1773051223889,1.39547931,83.96,83.94,11.91320589]
[1773051224199,1.39547931,83.959,83.931,11.91454885]
[1773051224381,1.39547931,83.959,83.932,1.30607609]
[1773051226294,1.39547931,83.959,83.934,1.29318609]
[1773051228207,1.34069875,83.978,83.941,1.29318609]
[1773051229207,1.34069875,83.976,83.941,1.29318609]
[1773051229894,29.76683455,83.987,83.951,1.29318609]
[1773051229895,11.90756778,83.981,83.951,1.29318609]
[1773051230298,1.34069875,83.981,83.953,1.29318609]
[1773051234800,1.34069875,83.979,83.945,1.29318609]
[1773051235009,1.34069875,83.969,83.945,1.29318609]
[1773051235400,1.34069875,83.969,83.944,11.9127037]
[1773051236214,1.34069875,83.969,83.945,1.29318609]
[1773051237105,1.34069875,83.969,83.946,41.6934696]
[1773051238513,1.34069875,83.967,83.935,1.29318609]
[1773051238718,1.34069875,83.967,83.93,4.3617546]
[1773051238719,1.34069875,83.967,83.938,1.29318609]
[1773051238923,1.34069875,83.959,83.939,11.91341331]
[1773051240416,4.3617546,83.96,83.939,11.91341331]
[1773051240417,4.3617546,83.97,83.941,1.29318609]
[1773051240623,5.70245335,83.97,83.941,1.29318609]
[1773051240825,11.90915695,83.969,83.941,1.29318609]
[1773051241500,1.34069875,83.978,83.943,1.29318609]
[1773051241819,6.22000325,83.987,83.942,41.69545637]
[1773051241820,1.34069875,83.993,83.961,1.29318609]
[1773051243018,4.3617546,83.99,83.961,1.29318609]
[1773051243323,7.61423417,83.994,83.971,1.32617931]
[1773051243528,7.61423417,83.994,83.973,1.32617931]
[1773051243736,1.29760596,83.997,83.973,1.32617931]
[1773051244913,1.29760596,83.995,83.973,1.32617931]